Cogmind - Beta 10.2 @@@ ROGUE MODE // 2021.05.12 @ 12:07:47 Player: DHM1 Result: Destroyed by as-23056 with Assembled Maul Performance ------------- Evolutions (0) 0 Regions Visited (2) 400 Robots Destroyed (19) 95 Value Destroyed (540) 540 Prototype IDs (2) 40 Alien Tech Used (0) 0 Bonus (0) 0 TOTAL SCORE: 1075 Bonus ------- None Cogmind --------- Core Integrity 0/250 Matter 300/300 Energy 43/100 System Corruption 5% Temperature Cool (0) Movement Rolling (90) Location -10/Mines Parts ------- > --- POWER (1) -------- (None) > --- PROPULSION (2) --- Armored Wheel Armored Wheel > --- UTILITY (2) ------ Hacking Suite > --- WEAPON (2) ------- EM Pulse Gun > --- INVENTORY (4) ---- Improved Heat Sink Peak State ------------ > --- POWER ------------ Light Nuclear Core > --- PROPULSION ------- Armored Wheel Armored Wheel > --- UTILITY ---------- Targeting Computer Hacking Suite > --- WEAPON ----------- Particle Gun Grenade Launcher > --- INVENTORY -------- Armored Wheel Improved Heat Sink EM Pulse Gun EM Pulse Gun [Rating: 14] Favorites ----------- Power Light Nuclear Core Engine Ion Engine Power Core Light Nuclear Core Propulsion Armored Wheel Leg Aluminum Leg Wheel Armored Wheel Utility Targeting Computer Device Improved Heat Sink Processor Targeting Computer Hackware Hacking Suite Weapon Assault Rifle Energy Gun EM Pulse Gun Ballistic Gun Assault Rifle Launcher Grenade Launcher Build | -11 -10 -10 ------- Run | Scr Mat Min Slots Evolved . | . . . Power . | . . . Propulsion . | . . . Utility . | . . . Weapon . | . . . Parts Attached 25 | 6 14 5 Power 2 | 1 1 . Engine 1 | 1 . . Core 1 | . 1 . Reactor . | . . . Propulsion 8 | 2 5 1 Treads . | . . . Leg 3 | 2 1 . Wheel 5 | . 4 1 Hover . | . . . Flight . | . . . Utility 4 | . 4 . Device 2 | . 2 . Storage . | . . . Processor 1 | . 1 . Hackware 1 | . 1 . Protection . | . . . Artifact . | . . . Weapon 11 | 3 4 4 Energy Gun 5 | . 2 3 Energy Cannon . | . . . Ballistic Gun 4 | 3 1 . Ballistic Cannon . | . . . Launcher 2 | . 1 1 Special Weapon . | . . . Impact Weapon . | . . . Slashing Weapon . | . . . Piercing Weapon . | . . . Special Melee Weapon . | . . . Unidentified Prototypes . | . . . Parts Lost 9 | . 3 6 Power 1 | . . 1 Propulsion 2 | . 1 1 Utility 1 | . . 1 Weapon 5 | . 2 3 Highest Loss Streak 4 | . 2 4 Average Slot Usage (%) 93 | . 93 93 Engine 6 | . 8 . Core 6 | . 5 10 Leg 2 | . 3 . Wheel 24 | . 23 27 Device 1 | . 1 . Processor 13 | . 13 14 Hackware 10 | . 9 14 Energy Gun 7 | . 4 15 Ballistic Gun 11 | . 14 . Launcher 7 | . 6 10 Naked Turns . | . . . Heaviest Build 11 | 9 11 11 Greatest Support 24 | 20 24 24 Greatest Overweight (x) 2 | . 2 . Average Overweight (x) . | . . . Largest Inventory Capacity 4 | 4 4 4 Average Capacity 4 | 4 4 4 Most Carried 4 | 2 4 4 Average Carried 2 | . 3 3 Final Capacity 4 | 4 4 4 Final Carried 4 | 2 4 1 Class Distribution -------------------- 100% | Mutant Dominant Class ---------------- Mutant | -10/Materials Mutant | -10/Mines Resources | -11 -10 -10 ----------- Run | Scr Mat Min Matter Collected 638 | 244 339 55 Remotely . | . . . Salvage Created 525 | . 433 92 Parts 39 | . 36 3 Haulers Intercepted 1 | . 1 . Recyclers Shooed . | . . . Parts Field Recycled . | . . . Retrieved Matter . | . . . Parts Self-Destructed . | . . . Prevented . | . . . Kills | -11 -10 -10 ------- Run | Scr Mat Min Combat Hostiles Destroyed 15 | . 11 4 Guns 8 | . 6 2 AOE 7 | . 5 2 Classes Destroyed 8 | . 6 2 Worker 1 | . 1 . Hauler 1 | . 1 . Operator 1 | . 1 . Watcher 2 | . 2 . Swarmer 3 | . 3 . Grunt 10 | . 8 2 Demolisher 1 | . . 1 Assembled 1 | . . 1 Best Kill Streak 4 | . 4 2 Combat Bots Only 3 | . 3 2 Max Kills in Single Turn 2 | . 2 2 Gunslinging . | . . . Exploded 2 | . 2 2 Melee . | . . . Uniques/NPCs Destroyed . | . . . Combat | -11 -10 -10 -------- Run | Scr Mat Min Damage Taken 1210 | . 688 522 Core 274 | . 122 152 Absorbed by Shields . | . . . Core Remaining (%) 100 | 100 . . Volleys Fired 57 | . 42 15 Largest 2 | . 2 2 Hottest 95 | . 85 95 Shots Fired 93 | . 71 22 Gun 84 | . 65 19 Cannon . | . . . Launcher 9 | . 6 3 Special . | . . . Kinetic 48 | . 48 . Thermal 19 | . 17 2 Explosive 9 | . 6 3 Electromagnetic 17 | . . 17 Robot Hit Streak 10 | . 10 6 Robot Miss Streak 3 | . 3 2 Penetration Max . | . . . Secondary Targets 1 | . 1 . Max Gunslinging Chain 1 | . 1 . Shots Hit Robots 62 | . 47 15 Core Hits 38 | . 30 8 Critical Hits . | . . . Critical Kills . | . . . Critical Parts Destroyed . | . . . Melee Attacks . | . . . Impact . | . . . Slashing . | . . . Piercing . | . . . Sneak Attacks . | . . . Combat Hostiles . | . . . Follow-up Attacks . | . . . Damage Inflicted 1128 | . 837 291 Guns 717 | . 567 150 Cannons . | . . . Explosions 411 | . 270 141 Melee . | . . . Ramming . | . . . Kinetic 429 | . 429 . Thermal 171 | . 138 33 Explosive 411 | . 270 141 Electromagnetic 117 | . . 117 Impact . | . . . Slashing . | . . . Piercing . | . . . Highest Corruption 5 | . 1 5 Average Corruption 1 | . 1 1 Corruption Purged . | . . . Effects 5 | . 2 3 Message Errors 4 | . 2 2 Targeting Errors 1 | . . 1 Overload Shots . | . . . Overflow Damage 26 | . 17 9 Projectiles . | . . . Explosions 26 | . 17 9 Melee . | . . . Knockbacks . | . . . Impact . | . . . Kinetic . | . . . Secondary . | . . . Self-Inflicted Damage 119 | . 79 40 Shots 3 | . 2 1 Rammed . | . . . Targets Rammed . | . . . Kicked . | . . . Crushed . | . . . Highest Temperature 90 | . 90 46 Average Temperature 20 | . 24 13 Received Heat Transfer 249 | . 219 30 Siege Activations . | . . . Robots Corrupted . | . . . Combat Hostiles . | . . . Parts Fried . | . . . Impact Corruptions . | . . . Robots Melted . | . . . Combat Hostiles . | . . . Parts Melted . | . . . Heat Transferred 407 | . 333 74 Parts Sabotaged . | . . . Parts Stolen . | . . . Parts Stripped . | . . . Power Chain Reactions . | . . . Missiles Intercepted . | . . . Alert | -11 -10 -10 ------- Run | Scr Mat Min Peak Influence 224 | . 224 117 Initial 7 | . . 7 Average 97 | . 100 107 Maximum Alert Level 1 | . 1 . Low Security (%) 97 | 100 96 100 Level 1 2 | . 3 . Level 2 . | . . . Level 3 . | . . . Level 4 . | . . . Level 5 . | . . . High Security . | . . . Max Security . | . . . Squads Dispatched 2 | . 2 . Investigation . | . . . Extermination . | . . . Reinforcement 2 | . 2 . Assault . | . . . Garrison . | . . . Intercept . | . . . Construction Impeded . | . . . Haulers Reinforced . | . . . Stealth | -11 -10 -10 --------- Run | Scr Mat Min Distress Signals 1 | . 1 . Communications Jammed . | . . . Distress Signals . | . . . Times Spotted 29 | . 19 10 Peak Tracking Total 5 | . 5 4 Tactical Retreats 3 | . 2 1 Traps | -11 -10 -10 ------- Run | Scr Mat Min Traps Triggered 1 | . 1 . Indirectly . | . . . Trap Hack Attempts . | . . . Triggered . | . . . Disarmed . | . . . Reprogrammed . | . . . Reused . | . . . Traps Extracted . | . . . Installed . | . . . Triggered . | . . . Machines | -11 -10 -10 ---------- Run | Scr Mat Min Machines Disabled 4 | . 1 3 Max in Single Turn 1 | . 1 1 Machines Sabotaged . | . . . Garrisons Compromised . | . . . Overloaded Fab Kills . | . . . Fab Network Shutdowns . | . . . Hacking | -11 -10 -10 --------- Run | Scr Mat Min Machines Accessed 5 | . 5 . Terminals 4 | . 4 . Fabricators . | . . . Repair Stations . | . . . Recycling Units 1 | . 1 . Scanalyzers . | . . . Garrison Access . | . . . Total Hacks 12 | . 12 . Successful 6 | . 6 . Failed 6 | . 6 . Catastrophic . | . . . Database Lockouts . | . . . Manual . | . . . Terminals 11 | . 11 . Fabricators . | . . . Repair Stations . | . . . Recycling Units 1 | . 1 . Scanalyzers . | . . . Garrison Access . | . . . Terminal Hacks 5 | . 5 . Prototype ID Bank 1 | . 1 . Branch Access Points 1 | . 1 . Terminal Index 1 | . 1 . Security Status 1 | . 1 . Hauler Manifests 1 | . 1 . Fabricator Hacks . | . . . Repair Station Hacks . | . . . Recycling Unit Hacks 1 | . 1 . Report Inventory 1 | . 1 . Scanalyzer . | . . . Garrison Access Hacks . | . . . Unauthorized Hacks . | . . . Terminals . | . . . Fabricators . | . . . Repair Stations . | . . . Recycling Units . | . . . Scanalyzers . | . . . Garrison Access . | . . . Data Cores Recovered . | . . . Used . | . . . Hacking Detections 3 | . 3 . Full Trace Events . | . . . Feedback Events . | . . . Feedback Blocked . | . . . Robot Schematics Acquired . | . . . Robots Built . | . . . Matter . | . . . Time . | . . . Total Robot Build Rating . | . . . Part Schematics Acquired . | . . . Parts Built . | . . . Matter . | . . . Time . | . . . Total Part Build Rating . | . . . Parts Repaired . | . . . Time . | . . . Parts Recycled . | . . . Recycled Matter . | . . . Retrieved Matter . | . . . Retrieved Components . | . . . Parts Scanalyzed . | . . . Part Schematics Acquired . | . . . Parts Damaged . | . . . Bothacking | -11 -10 -10 ------------ Run | Scr Mat Min Used RIF Installer . | . . . Robots Hacked . | . . . Non-combat . | . . . Combat . | . . . Robot Hacks Applied . | . . . Relay Couplers Released . | . . . Robots Rewired . | . . . Allies Hacked . | . . . Hacks Repelled . | . . . Allies | -11 -10 -10 -------- Run | Scr Mat Min Total Allies . | . . . Largest Group . | . . . Highest-Rated Group . | . . . Highest-Rated Ally . | . . . Total Orders . | . . . Ally Attacks . | . . . Total Damage . | . . . Kills . | . . . Allies Corrupted . | . . . Allies Melted . | . . . Intel | -11 -10 -10 ------- Run | Scr Mat Min Robot Analysis Total . | . . . Derelict Logs Recovered 1 | . . 1 Drone Launches . | . . . Drone Recoveries . | . . . Exploration | -11 -10 -10 ------------- Run | Scr Mat Min Turns Passed 1208 | 58 884 266 Spaces Moved 1043 | 44 775 224 Core 7 | 6 1 . Treads . | . . . Legs 109 | 38 71 . Wheels 927 | . 703 224 Hover . | . . . Flight . | . . . Fastest Speed 50 | 50 90 90 Average Speed 92 | 110 92 90 Slowest Speed 150 | 120 150 90 Overloaded Moves . | . . . Propulsion Burnouts . | . . . Robots Hopped . | . . . Cave-ins Triggered . | . . . Exploration Rate (%) 51 | 4 89 62 Regions Visited 2 Branch Regions 1 Pre-discovered Areas . | . . . Known Exits Taken 1 | . 1 . Unknown Exits Taken 1 | 1 . . Scrap Searched 1 | . . 1 Spaces Dug . | . . . Terrain Destroyed 58 | . 44 14 Melee . | . . . Projectile . | . . . AOE 58 | . 44 14 Terrain Rammed . | . . . Walls Destroyed . | . . . Machines Disabled . | . . . Actions | -11 -10 -10 --------- Run | Scr Mat Min Total 1185 | 50 869 266 Wait 40 | . 20 20 Move 1041 | 43 774 224 Hop . | . . . Pick Up 10 | 1 8 1 Fast Attach 13 | 5 8 . Attach 6 | . 3 3 Detach 1 | . 1 . Swap 6 | 1 3 2 Drop 11 | . 10 1 Fire 57 | . 42 15 Melee . | . . . Ram . | . . . Kick . | . . . Crush . | . . . Escape Stasis . | . . . Rewire . | . . . Trap . | . . . Miscellaneous . | . . . Route ------- -11/Scrapyard -10/Materials (discovered 5 exits: [*Mat x3] / *Min x2) -10/Mines (discovered 1 exit: [*Mat]) History --------- Turn | Location | Event 6 | -11/Scrapyard | Discovered new exit (range 15) 59 | -11/Scrapyard | Entered Materials 164 | -10/Materials | Discovered new exit (range 13) 303 | -10/Materials | Build established: Mutant 352 | -10/Materials | Discovered new exit (range 15) 386 | -10/Materials | Discovered new exit (range 9) 659 | -10/Materials | Discovered new exit (range 11) 780 | -10/Materials | Identified exit to Mines 794 | -10/Materials | Discovered new exit (range 16) 943 | -10/Materials | Entered Mines 954 | -10/Mines | Core integrity fell below 50% 983 | -10/Mines | Learned Materials stockpile data 1002 | -10/Mines | Discovered new exit (range 8) 1072 | -10/Mines | Assembled infested the area 1169 | -10/Mines | Lost 4 parts (1p1n2w) 1177 | -10/Mines | Core integrity fell below 20% 1209 | -10/Mines | Destroyed by as-23056 with Assembled Maul Last Messages --------------- Grenade Launcher destroyed. Destroyed Grenade Launcher. Arm. Wheel destroyed. D-53 Grenadier destroyed. The unstable cave ceiling collapses. Particle Gun destroyed. L18VNWSME=E9W>/3B#MVB P27MYYZ,3MOQ The unstable cave ceiling collapses. D-53 Grenadier destroyed. The unstable cave ceiling collapses. Acquired 6 matter. The unstable cave ceiling collapses. Acquired 13 matter. EM Pulse Gun destroyed. as-10800 misfires. as-10800 destroyed. Acquired 6 matter. Targeting Computer destroyed. System corrupted by crushing effect (+4). FK8KYI#TGR=IE VK%YV5WYUH# KRD Map ----- +----------------------------------------------------+ | | | | | | | | | | | | | | | ?????????????????????????????????????????????????? | | ???????????????????????????????????????#########?? | | ??????????????????????????????????###### ### | | ?????????????????????????????????## # | | ?????????????????????????????????# | | ?????????????????????????????????# [ | | ?????????????????????????????????## = # # | | ??????????????????????????????????# # | | ??????????????????????????????????## # | | ??????????????????????????????????## # | | ??????????????????????????????????# ## # # | | ??????????????????????????????????# = #### # # | | ??????????????????????####????????# ### #### ## | | ??????????????#??????## ?????????## #?# ### ## | | ??????????????# ?????# ?????????# #### ## | | ??????????????# ??## ????????## # | | ???????????????# ## ???????## # | | ????????????????# ######### # # | | ???????????????????#%|!*a@ % | | ???????????????????###% ######### # # | | ?????????????????? ==#???????# # ## | | ?????????????????##### %#???????### # # | | ?????????????????????# #?????????######## | | ?????????????????????# #?????????????????## # | | ?????????????????????# #???????????????????##?# | | ?????????????????????# #???????????????????????## | | ?????????????????????# #????????????????????????# | | ?????????????????????# #????????????????????????? | | ?????????????????????# ?????????????????????????? | | ?????????????????????# %???????????????????????### | | ????????????????????? ??????????????????????## | | ????????????????????? ??????????????????????# | | ????????????????????? ??????????????????????# | | ?????????????????????" ???????????????????????# | | ?????????????????????? ??????????????????????## | | ????????????????????????????????????????????### | | ???????????????????????????????????????????## | | ???????????????????????????????????????????# | | ?????????????????????????###???????????????# | | ???????????????????#????## #??????????????# ## | | ???????????????????# ??## ?????????????? ?????# | | ???????????????????? ## #???????????????????? | | ?????????????????????? ##??????????????????? | +----------------------------------------------------+ Best States ------------- Heat Dissipation 39 Energy Generation 14 Energy Capacity 250 Matter Stores 300 Matter Capacity 300 Sight Range 16 Terrain Scan Density 10 Evasion (%) 42 Targeting Accuracy 5 Offensive Hacking 10 Item Schematics ----------------- None Robot Schematics ------------------ None Fabricated ------------ Nothing Alien Tech Used ----------------- None Achievements -------------- None Challenges ------------ None Game ------ Seed SmartbombTerrainSlayer Manual? 0 Play Time 00:18:09 Cumulative 11.2 hours Start 2021.05.12 @ 11:53:04 End 2021.05.12 @ 12:07:47 Sessions 1 Manual Loads 0 Difficulty Rogue Special Mode None Game No. 11 Rogue 11 Adventurer 0 Explorer 0 Win Type - Total 0 Types 0/0/0/0/0/0/0/0/0 Lore% 8 Gallery% 15 Achievement% 12 Wizard Run 0 Options --------- ASCII 0 Keyboard 0 Movement Numpad Keybinds 0 Fullscreen 1 Font 18/SmallcapsGlow Map View 76x50 Tactical HUD 0 Map Filters NONE Filters NONE Steam 1 RUN: 87b3ecb9-f41e-4a52-b7c4-2d85e1a125d2